[Event "Romanian Rapid Open 2022"]
[Site "Sebes"]
[Date "2022.12.02"]
[Round "4.1"]
[White "Jianu, Vlad-Cristian"]
[Black "Ghimpu, Samuel-Timotei"]
[Result "0-1"]
[ECO "D02"]
[WhiteElo "2516"]
[BlackElo "2455"]
[Annotator "TA"]
[PlyCount "147"]
[EventDate "2022.12.02"]
[EventType "rapid"]
[EventCountry "ROU"]
[SourceTitle "playchess.com"]
[Source "ChessBase"]
[SourceQuality "1"]
[TimeControl "600+5"]

{[%evp 9,147,4,7,14,27,5,18,-52,-43,-41,-49,-60,-56,-58,-59,-55,-45,-74,-62,-73,-58,-84,-64,-149,-156,-136,-51,-84,-44,-39,-36,-53,0,-122,-79,-71,-71,-130,-66,-76,0,0,0,0,0,0,0,0,187,185,275,275,275,275,29984,0,63,54,69,0,0,0,22,-6,-5,-5,0,-24,-33,-52,-31,-50,-24,-75,-73,-161,-166,-167,-161,-161,-158,-155,-163,-111,-113,-91,-94,-91,-71,-72,-33,-72,-72,-72,-8,-64,-8,-8,0,-59,0,-93,-93,-96,0,-79,-8,-8,-8,-8,-8,-8,-8,-12,-8,-8,-8,-93,-12,-12,-12,-12,-12,-12,-8,-8,-8,-8,-8,-12,-8,-8,-8,-10,-10,-10,-10,-75,-98,-89]} 1. d4 {[%emt 0:00:02]} Nf6 {[%emt 0:00:03]} 2. Nf3 {[%emt 0:00:01]} d5 {[%emt 0:00:02]} 3. g3 {[%emt 0:00:02]} c5 {[%emt 0:00:12]} 4. Bg2 {[%emt 0:00:01]} cxd4 {[%emt 0:00:06]} 5. O-O {[%emt 0:00:07]} h6 {[%emt 0:00:01]} 6. b3 {[%emt 0:00:02] D02: 1 d4 d5 2 Nf3 sidelines, including 2...Nf6 3 g3 and 2...Nf6 3 Bf4.} h5 {[%emt 0:00:01][%cal Oh5h4]} 7. h4 {[%emt 0:00:27][%cal Oc1b2]} Bg4 {[%emt 0:00:02] [#]} 8. Nxd4 $146 {[%emt 0:00:05]} (8. Bb2 $11) ({Predecessor:} 8. Qxd4 Nc6 9. Qb2 g6 10. Nd4 Bg7 11. e3 O-O 12. Nd2 Qb6 13. Nxc6 Qxc6 14. c3 {0-1 (63) Vergara Anton,D (2177)-Sargsyan,S (2639) La Roda 2022}) 8... e5 $15 {[%emt 0:00:24]} 9. Nf3 {[%emt 0:00:03]} Nc6 {[%emt 0:00:05]} 10. Bb2 {[%emt 0:00:02]} Qc7 {[%emt 0:01:08]} 11. c4 {[%emt 0:01:37]} d4 {[%emt 0:02:00]} 12. Ng5 {[%emt 0:00:12]} Rd8 {[%emt 0:00:58]} 13. Nd2 {[%emt 0:00:18]} Be7 {[%emt 0:00:45]} 14. a3 {[%emt 0:00:43]} a5 {[%emt 0:00:03]} 15. Rc1 {[%emt 0:00:41]} Nd7 {[%emt 0:00:20]} 16. Re1 {[%emt 0:03:10]} (16. Nge4 $15) 16... Nc5 $1 $17 {[%emt 0:00:57]} 17. Nde4 {[%emt 0:00:12]} Bxg5 {[%emt 0:00:35]} (17... f6 $17 18. Nxc5 fxg5) 18. hxg5 {[%emt 0:00:36]} Nxe4 {[%emt 0:00:47] Black is more active.} 19. Bxe4 {[%emt 0:03:19]} h4 {[%emt 0:01:06]} (19... d3 {simplifies} 20. Bd5 Bxe2 21. Rxe2 dxe2 22. Qxe2 h4) 20. f3 {[%emt 0:00:00]} Be6 {[%emt 0:00:08]} (20... Bh5 $15 21. Kg2 (21. gxh4 Bg6 $17) 21... hxg3) 21. Kg2 {[%emt 0:00:00]} (21. g4 $11) 21... hxg3 {[%emt 0:00:32] Threatens to win with ...Bh3+.} 22. Rh1 {[%emt 0:00:00] Inhibits Bh3+.} Kd7 {[%emt 0:00:06]} 23. b4 {[%emt 0:00:00]} (23. Qd3 $142) 23... axb4 {[%emt 0:00:08]} ({Better is} 23... f5 $1 $17 {[%cal Rf5e4]} 24. gxf6 gxf6 25. Kxg3 f5 26. Bxc6+ Kc8) 24. axb4 $15 {[%emt 0:00:00]} Nxb4 {[%emt 0:00:02]} (24... Qb6 $17 25. Qa4 Ra8) 25. Qa4+ $11 {[%emt 0:00:00]} Nc6 {[%emt 0:00:01]} 26. Qb5 {[%emt 0:00:00]} Kc8 {[%emt 0:00:34]} 27. Rxh8 {[%emt 0:00:00]} Rxh8 {[%emt 0:00:01]} 28. Ra1 {[%emt 0:00:00]} Rh2+ $2 {[%emt 0:00:17]} (28... Bd7 $11) 29. Kxg3 $18 {[%emt 0:00:00]} Rxe2 {[%emt 0:00:02]} (29... Rh8 $142 30. Ra8+ Nb8) 30. Ra8+ $1 {[%emt 0:00:00]} Kd7 {[%emt 0:00:02][%cal Od4d3]} 31. Ba3 {[%emt 0:00:01] Prevents d3. A strong pair of Bishops.} d3 $2 {[%emt 0:00:12] [#]} (31... Ra2 $18 32. Qc5 Rxa3 33. Qxa3 Bxc4) 32. c5 $2 {[%emt 0:00:21]} (32. Bf5 $1 {[%mdl 512] mates} e4+ 33. f4 Re3+ 34. Kg4 Qd8 35. Qxb7+ Qc7 36. Qb5 Qd8 37. Rxd8+ Kxd8 38. Qb6+ Kd7 39. Qb7+ Kd8 40. Bd6) 32... Re3 {[%emt 0:00:52]} (32... Ra2 $11 33. Ra7 Kc8 34. Ra8+ Kd7) 33. Bc1 $14 {[%emt 0:00:06][%mdl 64] Deflection} Re1 {[%emt 0:00:08]} 34. Qxd3+ {[%emt 0:00:04]} ({White should try} 34. Bd2 $1 $14 Rxe4 35. fxe4) 34... Ke7 $11 {[%emt 0:00:01] Really sharp!} 35. Bd2 {[%emt 0:00:16]} Rd1 {[%emt 0:00:08]} 36. Qc2 {[%emt 0:00:09][%mdl 1024] White has compensation.} (36. Bxc6 $5 bxc6 37. Qa6 e4+ 38. f4 $11) 36... Rh1 {[%emt 0:00:06]} 37. Kg2 $132 {[%emt 0:00:03][%mdl 2048] White is not holding back} Rh5 {[%emt 0:00:07]} (37... Nd4 $2 38. Qa4 Bd7 39. c6 Bxc6 40. Qb4+ Qd6 41. Bxc6 Nxc6 42. Qxb7+ Qd7 43. Qxd7+ Kxd7 44. Kxh1 $18) 38. Qd3 {[%emt 0:00:03] And now Bxc6 would win.} Qd7 {[%emt 0:00:03]} (38... Nd4 $2 39. c6 Nxc6 40. Qb5 $18) 39. Be3 {[%emt 0:00:21]} Qxd3 (39... Nd4 $2 40. c6 Bh3+ 41. Kf2 bxc6 42. Qa3+ (42. Qc4 Qd6 $11) 42... Ke6 43. Qf8 $18) 40. Bxd3 {[%emt 0:00:00]} Bd5 {[%emt 0:00:10]} 41. Rg8 {[%emt 0:00:12]} (41. Bf5 $11) 41... g6 {[%emt 0:00:03]} (41... Nd4 {keeps more tension.} 42. Be4 Bc6 43. Rc8 Kd7) 42. Be4 {[%emt 0:00:05]} (42. Bb5 $17 {keeps fighting.}) 42... Bxe4 $19 {[%emt 0:00:03]} 43. fxe4 {[%emt 0:00:01][%mdl 4096] Endgame KRB-KRN} Rh4 {[%emt 0:00:04]} 44. Kf3 {[%emt 0:00:00]} Rh3+ {[%emt 0:00:03]} 45. Kf2 {[%emt 0:00:01]} Nd8 $1 {[%emt 0:00:08]} 46. Ke2 {[%emt 0:00:14]} Kd7 {[%emt 0:00:07]} 47. Rf8 {[%emt 0:00:04][%cal Oc5c6]} Rh7 {[%emt 0:00:04] Inhibits c6+.} 48. Kd3 {[%emt 0:00:05]} Ne6 {[%emt 0:00:04]} 49. Rb8 {[%emt 0:00:05]} Kc7 {[%emt 0:00:02]} 50. Ra8 {[%emt 0:00:02]} Rh3 {[%emt 0:00:02][%csl LRc5,LRg5]} 51. Ke2 {[%emt 0:00:01]} Nd4+ {[%emt 0:00:07]} (51... Rh4 $17 52. Kd3 Rh3) 52. Kd2 {[%emt 0:00:07]} (52. Bxd4 $11 exd4 53. Rf8) 52... Nf3+ {[%emt 0:00:09]} (52... Rh2+ $15 53. Kd3 Ne6) 53. Ke2 $11 {[%emt 0:00:02]} Nd4+ {[%emt 0:00:19]} (53... Kd7 $11) 54. Kd2 $15 Ne6 {[%emt 0:00:00]} (54... Nc6 $15) 55. Re8 {[%emt 0:00:01]} (55. Ke2 $11 {keeps the balance.}) 55... Kd7 $17 {[%emt 0:00:00]} 56. Rb8 {[%emt 0:00:02]} Kc7 {[%emt 0:00:02]} 57. Re8 {[%emt 0:00:01]} Rh7 {[%emt 0:00:02]} ({Black should play} 57... Rh2+ $1 $17 58. Kd3 Kd7) 58. Kd3 $11 {[%emt 0:00:03]} Kc6 {[%emt 0:00:05]} 59. Re7 {[%emt 0:00:33]} Nxc5+ {[%emt 0:00:09]} 60. Bxc5 {[%emt 0:00:04]} Kxc5 {[%emt 0:00:02]} 61. Rxe5+ {[%emt 0:00:03] KR-KR} Kd6 {[%emt 0:00:05]} 62. Rd5+ {[%emt 0:00:03]} Kc6 {[%emt 0:00:08] Strongly threatening ...Rh1.} 63. Kc4 {[%emt 0:00:07] [#]} (63. Kd4 $11 {remains equal.}) 63... Rh1 {[%emt 0:00:05]} (63... Rh8 $1 $17) 64. Rc5+ {[%emt 0:00:02]} Kd6 {[%emt 0:00:08] ( -> ...Rc1+)} 65. Rd5+ $1 {[%emt 0:00:01]} Ke6 {[%emt 0:00:05] aiming for ...Rc1+.} 66. Rb5 {[%emt 0:00:03]} Rg1 {[%emt 0:00:07][%cal Ob7b6]} 67. Kd4 {[%emt 0:00:07] Prevents b6.} Rd1+ {[%emt 0:00:05]} 68. Ke3 $1 {[%emt 0:00:04]} Rd7 {[%emt 0:00:01]} 69. Rb6+ {[%emt 0:00:01]} Ke7 {[%emt 0:00:02]} 70. e5 {[%emt 0:00:23]} Kd8 {[%emt 0:00:06]} 71. Rb1 {[%emt 0:00:13]} Kc7 {[%emt 0:00:07]} 72. Rc1+ {[%emt 0:00:02]} Kb8 {[%emt 0:00:04]} 73. Ke4 {[%emt 0:00:02] [#]} (73. Rf1 $11) 73... b5 $1 $17 {[%emt 0:00:06]} 74. Rb1 {[%emt 0:00:17] What a fight!   Weighted Error Value: White=0.29 (precise) /Black=0.37} 0-1

[Event "Romanian Rapid Open 2022"]
[Site "Sebes"]
[Date "2022.12.02"]
[Round "4.2"]
[White "Bulmaga, Irina"]
[Black "Ardelean, George-Catalin"]
[Result "0-1"]
[ECO "B67"]
[WhiteElo "2426"]
[BlackElo "2473"]
[Annotator "TA"]
[PlyCount "158"]
[EventDate "2022.12.02"]
[EventType "rapid"]
[EventCountry "ROU"]
[SourceTitle "playchess.com"]
[Source "ChessBase"]
[SourceQuality "1"]
[TimeControl "600+5"]

{[%evp 18,158,32,41,40,33,31,45,33,0,8,22,23,27,40,10,25,12,19,11,19,-15,-21,-31,-9,-13,0,0,0,0,0,0,0,0,0,-67,-54,-74,0,0,0,0,0,0,16,-112,-46,-64,0,-89,71,0,0,0,0,-13,0,-17,0,0,0,-12,0,-17,220,220,266,246,301,149,160,135,155,-255,120,98,113,72,130,59,121,66,124,60,194,172,229,-1004,-1002,-850,-702,-6095,-6108,-4835,-2992,-1804,-1248,-1248,-1119,-29971,-29972,-29969,-29971,-29975,-29976,-29976,-29978,-29984,-1278,-1237,-1237,-1220,-1144,-1223,-1204,-4570,-3927,-2150,-2314,-1366,-1254,-1187,-1126,-1118,-1046,-29969,-29969,-29960,-29968,-29968,-29969,-29972,-29973,-29973,-29974,-29974,-29975,-29975,-29976,-29976,-29971,-29971,-29965]} 1. e4 {[%emt 0:00:02]} c5 {[%emt 0:00:06]} 2. Nf3 {[%emt 0:00:02]} d6 {[%emt 0:00:04]} 3. d4 {[%emt 0:00:02]} cxd4 {[%emt 0:00:03]} 4. Nxd4 {[%emt 0:00:02]} Nf6 {[%emt 0:00:05]} 5. Nc3 {[%emt 0:00:01]} Nc6 {[%emt 0:00:03]} 6. Bg5 {[%emt 0:00:07]} e6 {[%emt 0:00:03]} 7. Qd2 {[%emt 0:00:23]} a6 {[%emt 0:00:03]} 8. O-O-O {[%emt 0:00:06]} Bd7 {[%emt 0:00:03]} 9. f3 {[%emt 0:00:07]} Be7 {[%emt 0:00:18]} 10. h4 {[%emt 0:01:26]} h6 {[%emt 0:00:05] B67: Sicilian: Richter-Rauzer: 7...a6 8 0-0-0 Bd7, lines without 9 f4 Be7.} 11. Be3 {[%emt 0:00:03]} h5 {[%emt 0:00:02] Prevents g4.} 12. Bg5 {[%emt 0:00:02]} Rc8 {[%emt 0:00:56] White is slightly better.} 13. Kb1 {[%emt 0:00:19]} Nxd4 {[%emt 0:00:25]} 14. Qxd4 {[%emt 0:00:01]} Qc7 {[%emt 0:00:24]} 15. Qd2 {[%emt 0:00:22]} b5 {[%emt 0:00:14]} 16. Ne2 {[%emt 0:00:14]} a5 {[%emt 0:03:49]} 17. Nd4 {[%emt 0:00:12]} (17. c3 {keeps more tension.} d5 18. Bxf6 Bxf6 19. exd5 b4 20. cxb4 axb4 21. Nf4) 17... Rb8 {[%emt 0:00:08] [#]} 18. Rc1 $146 {[%emt 0:00:34]} ({Predecessor:} 18. Bd3 b4 19. f4 a4 20. Rhe1 Qc5 21. Nf3 Bc6 22. e5 Bxf3 23. exf6 Bxd1 24. fxg7 {0-1 (55) Caruana,F (2820)-Bacrot,E (2678) Paris 2021}) 18... O-O {[%emt 0:00:23]} 19. c4 {[%emt 0:00:11]} bxc4 {[%emt 0:00:16]} 20. Bxc4 {[%emt 0:00:02]} Qb7 {[%emt 0:00:03]} (20... Qb6 $5 {[%cal Rd6d5]}) 21. Rc2 {[%emt 0:01:41]} (21. Qxa5 $2 Qxb2#) 21... Rfc8 {[%emt 0:00:08]} 22. Rhc1 {[%emt 0:00:04]} a4 {[%emt 0:00:09]} 23. Bd3 {[%emt 0:00:56]} Rxc2 {[%emt 0:00:15]} 24. Rxc2 {[%emt 0:00:01]} (24. Qxc2 d5 25. Qe2 Bd6 $17) 24... e5 {[%emt 0:00:25]} 25. Ne2 {[%emt 0:00:13]} Be6 {[%emt 0:00:09]} 26. Bc4 {[%emt 0:00:36]} (26. Nc3 $11) 26... Bxc4 $15 {[%emt 0:00:39]} 27. Rxc4 {[%emt 0:00:01]} a3 {[%emt 0:00:01]} (27... d5 $1 $17 {[%cal Rd5c4]} 28. Rxa4 dxe4 29. Bxf6 e3) 28. b3 $11 {[%emt 0:00:23]} d5 {[%emt 0:00:05]} 29. exd5 {[%emt 0:00:07]} Nxd5 {[%emt 0:00:02]} 30. Bxe7 {[%emt 0:00:05]} Nxe7 {[%emt 0:00:01]} 31. Qc1 {[%emt 0:00:15]} (31. Qd6 $11 Re8 32. Qxa3 (32. Qxe5 Qd7 $11)) 31... Qb5 {[%emt 0:00:43]} (31... Qa6 $17 {And now ...Qg6+ would win.} 32. Qc2 Rd8) 32. Ng3 {[%emt 0:00:57]} Qd7 {[%emt 0:00:29]} ({Black should play} 32... Qa6 $15) 33. Rc7 {[%emt 0:00:27]} (33. Qxa3 $11 {keeps the balance.} Qd3+ 34. Ka1) 33... Qe6 $2 {[%emt 0:00:15]} (33... Qd3+ $17 {keeps the pressure on.} 34. Rc2 (34. Qc2 Qd4 $17) 34... Rd8) 34. Ne4 {[%emt 0:00:39]} (34. Qxa3 $16 Qg6+ 35. Ne4) 34... Nd5 {[%emt 0:00:34]} 35. Rc6 $36 {[%emt 0:00:09][%mdl 2048] Black is under pressure.} Qd7 {[%emt 0:00:04][%cal Od5e3]} 36. Qc5 {[%emt 0:00:40] Inhibits Ne3.} (36. Rd6 $5 {[%cal Rd6d7]} Qb5 37. Qxa3 $11) 36... Nb4 {[%emt 0:00:45]} 37. Qd6 {[%emt 0:01:06]} (37. Rd6 $5 {[%cal Rd6d7]} Qc8 38. Qc3 $11 (38. Qxe5 $2 {leads to mate.} Qc2+ 39. Ka1 Qxa2#)) 37... Qb7 {[%emt 0:00:29]} (37... Qxd6 {simplifies} 38. Rxd6 f5 39. Nc3 Kf7) 38. Rc3 {[%emt 0:00:08]} Qb5 {[%emt 0:00:06] ...Qf1+ is the strong threat.} 39. Ng5 {[%emt 0:00:23]} Rf8 {[%emt 0:00:21][%cal Ob5e2] ( -> ...Qe2!)} 40. Rc4 {[%emt 0:00:03]} Na6 {[%emt 0:00:04]} (40... Nd5 $11 {and Black has nothing to worry.}) 41. Qxa3 $18 {[%emt 0:00:11]} Rd8 {[%emt 0:00:05]} 42. Ne4 {[%emt 0:00:06]} Nb8 {[%emt 0:00:05]} 43. Qb2 {[%emt 0:00:05]} ({Don't take} 43. Qc5 Qxc5 44. Rxc5 f6 $18) (43. Qe7 $18 {and White stays clearly on top.} Rf8 44. Kb2) 43... Nc6 $16 {[%emt 0:00:03]} 44. a4 {[%emt 0:00:03]} Qb6 {[%emt 0:00:02]} 45. Rc2 $2 {[%emt 0:00:04]} (45. Ka2 $16) 45... Nd4 $2 {[%emt 0:00:07] [#]} (45... Rd1+ $19 46. Rc1 Rxc1+ 47. Qxc1 Qxb3+ 48. Qb2 Qd1+ 49. Qc1 Qxa4) 46. Rc3 $1 {[%emt 0:00:02]} Rb8 {[%emt 0:00:04]} 47. Ka2 {[%emt 0:00:03]} Qa5 {[%emt 0:00:08] [#]} (47... Qa6 $142) 48. Nc5 {[%emt 0:00:04]} (48. Qc1 $1 $16) 48... Qd8 {[%emt 0:00:04]} ({Black should try} 48... Rb5 $14) 49. b4 {[%emt 0:00:05]} (49. Qf2 $16) 49... Qd5+ {[%emt 0:00:02]} (49... Qxh4 $14 50. Rc4 Qf6) 50. Ka3 {[%emt 0:00:06]} (50. Kb1 $16) 50... Nc6 {[%emt 0:00:10]} (50... Ra8 $1 $14 51. b5 Ra5) 51. b5 $18 {[%emt 0:00:13] Hoping for Na6.} Nd4 {[%emt 0:00:07]} (51... Qd6 $142 52. Ka2 Nd4) 52. Qa2 $4 {[%emt 0:00:05][%mdl 8192] [#]} (52. Qb4 $18) 52... Nxb5+ $1 $19 {[%emt 0:00:04][%mdl 576]} 53. axb5 {[%emt 0:00:03]} Ra8+ {[%emt 0:00:01][%mdl 64] Skewer} 54. Na6 {[%emt 0:00:01]} Qxb5 {[%emt 0:00:02][%cal Ra8a6]} 55. Qb3 {[%emt 0:00:05]} Qxa6+ {[%emt 0:00:04][%mdl 4096] Endgame KQR-KQR} 56. Kb2 {[%emt 0:00:02]} Qa1+ {[%emt 0:00:01]} 57. Kc2 {[%emt 0:00:00]} Qf1 {[%emt 0:00:16]} 58. Qd5 {[%emt 0:00:17]} Qxg2+ {[%emt 0:00:01]} 59. Kd3 {[%emt 0:00:05]} Qf1+ {[%emt 0:00:06]} 60. Ke3 {[%emt 0:00:07]} Qe1+ {[%emt 0:00:02]} 61. Kd3 {[%emt 0:00:02]} Qd1+ {[%emt 0:00:07]} 62. Ke4 {[%emt 0:00:01]} Qxd5+ {[%emt 0:00:05]} (62... Qe2+ $142 63. Kf5 Ra4 64. Qe4 Rxe4 65. fxe4 Qf2+ 66. Kxe5 Qf6+ 67. Kd5 Qxc3 68. e5 Kf8 69. Ke4 Ke8 70. Kf4 Ke7 71. e6 Kxe6 72. Ke4 f5+ 73. Kf4 Qh3 74. Kg5 Qg4#) 63. Kxd5 {[%emt 0:00:02] KR-KR} Ra4 {[%emt 0:00:00]} 64. Kxe5 {[%emt 0:00:04]} Rxh4 {[%emt 0:00:01]} 65. Kf5 {[%emt 0:00:07]} g6+ {[%emt 0:00:03]} 66. Ke5 {[%emt 0:00:04]} Kg7 {[%emt 0:00:01]} 67. Rc7 {[%emt 0:00:05]} Ra4 {[%emt 0:00:04] Threatens to win with ...h4.} 68. Rb7 {[%emt 0:00:10]} Ra5+ {[%emt 0:00:01]} 69. Kf4 {[%emt 0:00:02]} Rf5+ {[%emt 0:00:01]} 70. Ke4 {[%emt 0:00:02]} h4 {[%emt 0:00:06][%cal Bh5h4,Bh4h3][%mdl 32]} 71. f4 {[%emt 0:00:06]} h3 {[%emt 0:00:09] Black mates.} 72. Rb2 {[%emt 0:00:08]} Rh5 {[%emt 0:00:01]} 73. Rh2 {[%emt 0:00:01]} Kf6 {[%emt 0:00:01]} 74. Kf3 {[%emt 0:00:01]} Kf5 {[%emt 0:00:01]} 75. Kg3 {[%emt 0:00:01]} Ke4 {[%emt 0:00:13]} 76. Re2+ {[%emt 0:00:03]} Kd3 {[%emt 0:00:01]} 77. Rh2 {[%emt 0:00:04]} Ke3 {[%emt 0:00:01]} 78. Kg4 {[%emt 0:00:05]} f5+ {[%emt 0:00:02]} 79. Kg3 {[%emt 0:00:01]} Rh7 {[%emt 0:00:07] Weighted Error Value: White=0.62/Black=0.42} 0-1

[Event "Romanian Rapid Open 2022"]
[Site "Sebes"]
[Date "2022.12.02"]
[Round "4.3"]
[White "Gavrilescu, David"]
[Black "Soltanici, Ruslan"]
[Result "1/2-1/2"]
[ECO "C45"]
[WhiteElo "2523"]
[BlackElo "2357"]
[Annotator "TA"]
[PlyCount "96"]
[EventDate "2022.12.02"]
[EventType "rapid"]
[EventCountry "ROU"]
[SourceTitle "playchess.com"]
[Source "ChessBase"]
[SourceQuality "1"]
[TimeControl "600+5"]

{[%evp 17,96,-12,16,18,58,50,73,72,74,70,74,37,58,22,24,0,0,-5,37,33,30,32,39,39,25,56,41,39,48,58,35,75,75,-11,92,92,93,106,154,169,172,171,170,169,175,159,176,176,176,176,174,138,150,136,248,209,246,260,246,200,239,206,206,206,206,28,28,29,29,29,31,42,75,77,78,0,8,0,6,0,0]} 1. e4 {[%emt 0:00:02]} e5 {[%emt 0:00:02]} 2. Nf3 {[%emt 0:00:03]} Nc6 {[%emt 0:00:02]} 3. d4 {[%emt 0:01:00]} exd4 {[%emt 0:00:05]} 4. Nxd4 {[%emt 0:00:02]} Nf6 {[%emt 0:00:25]} 5. Nxc6 {[%emt 0:00:03]} bxc6 {[%emt 0:00:02]} 6. e5 {[%emt 0:00:02]} Qe7 {[%emt 0:00:13]} 7. Qe2 {[%emt 0:00:02]} Nd5 {[%emt 0:00:07]} 8. c4 {[%emt 0:00:03]} Ba6 {[%emt 0:00:53]} 9. Nd2 {[%emt 0:00:03]} Nb6 {[%emt 0:03:16]} 10. b3 {[%emt 0:02:00] C45: Scotch Game.} O-O-O {[%emt 0:01:23]} 11. Bb2 {[%emt 0:00:25]} d5 {[%emt 0:00:24]} 12. exd6 {[%emt 0:00:03] White is better.} Qxe2+ {[%emt 0:00:51]} 13. Bxe2 {[%emt 0:00:02]} cxd6 {[%emt 0:00:03]} 14. O-O-O {[%emt 0:01:00]} (14. O-O $5 {[%cal Rd2f3]}) 14... f6 {[%emt 0:00:13] [#]} 15. a4 $146 {[%emt 0:00:38]} ({Predecessor:} 15. Rhe1 d5 16. cxd5 Bxe2 17. Rxe2 Nxd5 18. Nf3 Nf4 19. Rxd8+ Kxd8 20. Re4 Nd3+ 21. Kc2 Nxb2 22. Kxb2 {1-0 (73) Bodrozic,T (2362)-Neidig,S (2230) Baden 2018}) 15... d5 {[%emt 0:00:23]} 16. a5 {[%emt 0:00:20]} (16. Nf3 $5 {[%cal Rf3d4]}) 16... Nd7 {[%emt 0:00:22][%cal Bb6d7,Bd7e5,Be5g4][%mdl 32]} 17. Bg4 {[%emt 0:01:17]} Kb8 {[%emt 0:01:10]} (17... Kc7 {with more complications.} 18. Kc2 Bb4 19. cxd5 Nc5) 18. Nf3 {[%emt 0:00:12][%cal Bd2f3,Bf3d4,Bd4c6][%mdl 32] Against Ne5} Bb4 {[%emt 0:01:02]} 19. Nd4 {[%emt 0:00:29]} Ne5 {[%emt 0:00:14] [#]} 20. f4 $1 $36 {[%emt 0:00:25][%mdl 2048] Prevents c5. White fights for an advantage.} Nxg4 {[%emt 0:00:10]} 21. Nxc6+ {[%emt 0:00:02]} Kb7 {[%emt 0:00:03]} 22. Nxb4 {[%emt 0:00:02]} dxc4 {[%emt 0:00:06]} 23. Rhe1 {[%emt 0:00:12]} Rxd1+ {[%emt 0:00:11]} (23... cxb3 $2 24. Re7+ Kc8 25. Nxa6 $18) 24. Rxd1 {[%emt 0:00:02] Threatens to win with Rd7+.} Bb5 {[%emt 0:00:10] Prevents Rd7+.} 25. bxc4 {[%emt 0:00:02]} ({Better is} 25. a6+ $1 $16 Kb6 26. Bd4+ Ka5 27. Nd5 cxb3 28. h3) 25... Ba4 {[%emt 0:00:06]} (25... Rc8 $11 {remains equal.} 26. Rd4 (26. a6+ Kb6 $11) 26... Nxh2) 26. Re1 $16 {[%emt 0:00:08] Hoping for Re7+.} Rc8 {[%emt 0:00:10] [#]} 27. Re7+ $1 {[%emt 0:00:39]} Rc7 {[%emt 0:00:07]} (27... Ka8 $142) 28. a6+ {[%emt 0:00:10]} Kc8 {[%emt 0:00:02]} 29. Rxc7+ {[%emt 0:00:21]} Kxc7 $18 {[%emt 0:00:00][%mdl 4096] Endgame KBN-KBN} 30. Bd4 {[%emt 0:00:01]} Bb3 {[%emt 0:00:01]} 31. h3 {[%emt 0:00:05]} Nh6 {[%emt 0:00:02]} 32. Nd5+ {[%emt 0:00:06]} ({Much less strong is} 32. Bxa7 Bxc4 33. Bc5 Kb8) 32... Kb8 {[%emt 0:00:07]} 33. Ne3 {[%emt 0:00:01]} Nf7 {[%emt 0:00:05]} 34. Kb2 {[%emt 0:00:02]} Ba4 {[%emt 0:00:01]} 35. Nf5 {[%emt 0:00:07] White is more active.} g6 {[%emt 0:00:05]} (35... g5 $16 36. fxg5 (36. Bxf6 gxf4 37. Ne7 Bd1 $18) 36... fxg5) 36. Ka3 {[%emt 0:00:04]} Bc6 {[%emt 0:00:08]} 37. Ne3 {[%emt 0:00:07]} f5 {[%emt 0:00:14]} 38. Kb4 {[%emt 0:00:00]} Nd8 {[%emt 0:00:03]} 39. g4 {[%emt 0:00:53]} Be4 {[%emt 0:00:10]} 40. Be5+ {[%emt 0:00:02]} Kc8 {[%emt 0:00:01]} 41. Nd5 $2 {[%emt 0:00:08]} (41. gxf5 $18 {And now f6 would win.} gxf5 42. Nd5) 41... fxg4 $1 $11 {[%emt 0:00:08]} 42. hxg4 {[%emt 0:00:02]} h5 $1 {[%emt 0:00:00]} 43. gxh5 {[%emt 0:00:18]} gxh5 {[%emt 0:00:01]} 44. Bf6 {[%emt 0:00:02] Bh4 is the strong threat.} Ne6 {[%emt 0:00:06]} 45. f5 $1 {[%emt 0:00:03]} Nc7 {[%emt 0:00:06] [#]} 46. Ne7+ {[%emt 0:00:12]} (46. Nxc7 $1 $16 {aiming for Nd5.} Kxc7 47. Be5+ Kd7 48. f6) 46... Kd7 {[%emt 0:00:01] The position is equal.} 47. Kc3 {[%emt 0:00:56]} Nxa6 {[%emt 0:00:04]} 48. Kd4 {[%emt 0:00:01]} Bxf5 {[%emt 0:00:27] Black defended with fortune.   Weighted Error Value: White=0.26 (precise) /Black=0.17 (very precise)} 1/2-1/2